[Event "*** Titled Tuesday Blitz"]
[Site "Chess.com"]
[Date "2021.03.30"]
[Round "6"]
[White "Slovak_fighter2000"]
[Black "BursaBBSatranc"]
[Result "0-1"]
[WhiteElo "2483"]
[BlackElo "2615"]
[TimeControl "180+1"]
[EndTime "11:07:05 PDT"]
[Termination "BursaBBSatranc won on time"]

1. Nf3 {[%clk 0:02:59.8]} 1... d5 {[%clk 0:02:59.6]} 2. d4 {[%clk 0:02:59.5]}
2... Nf6 {[%clk 0:02:59.5]} 3. c4 {[%clk 0:03:00]} 3... c6 {[%clk 0:02:59.2]} 4.
e3 {[%clk 0:02:59.7]} 4... Bf5 {[%clk 0:02:58.4]} 5. Nc3 {[%clk 0:03:00.3]} 5...
e6 {[%clk 0:02:58.7]} 6. Qb3 {[%clk 0:02:59.5]} 6... Qb6 {[%clk 0:02:58]} 7. Nh4
{[%clk 0:02:59.9]} 7... Qxb3 {[%clk 0:02:54.6]} 8. axb3 {[%clk 0:02:56.8]} 8...
Bc2 {[%clk 0:02:55.2]} 9. c5 {[%clk 0:02:46]} 9... Bxb3 {[%clk 0:02:54.9]} 10.
Nf3 {[%clk 0:02:45.3]} 10... Bc2 {[%clk 0:02:48.1]} 11. b4 {[%clk 0:02:45.2]}
11... Nbd7 {[%clk 0:02:47.7]} 12. b5 {[%clk 0:02:44.9]} 12... Be7 {[%clk
0:02:33.6]} 13. Bd2 {[%clk 0:02:36.9]} 13... O-O {[%clk 0:02:33.2]} 14. Be2
{[%clk 0:02:37.2]} 14... Rfc8 {[%clk 0:02:17.8]} 15. O-O {[%clk 0:02:36.6]}
15... cxb5 {[%clk 0:02:01.8]} 16. Nxb5 {[%clk 0:02:26.6]} 16... a6 {[%clk
0:01:54.4]} 17. Na3 {[%clk 0:02:26.8]} 17... Bg6 {[%clk 0:01:51.5]} 18. Nh4
{[%clk 0:02:17.7]} 18... b6 {[%clk 0:01:45.5]} 19. Nxg6 {[%clk 0:02:16.8]} 19...
hxg6 {[%clk 0:01:45.6]} 20. cxb6 {[%clk 0:02:17.1]} 20... Nxb6 {[%clk
0:01:45.6]} 21. Rfd1 {[%clk 0:02:07]} 21... Ne4 {[%clk 0:01:44]} 22. Be1 {[%clk
0:02:04.9]} 22... Nc3 {[%clk 0:01:34.5]} 23. Bxc3 {[%clk 0:02:04.6]} 23... Rxc3
{[%clk 0:01:35.4]} 24. Nb1 {[%clk 0:02:04.8]} 24... Rc2 {[%clk 0:01:13.3]} 25.
Rxa6 {[%clk 0:02:00]} 25... Rb8 {[%clk 0:01:01.3]} 26. Bd3 {[%clk 0:01:15.5]}
26... Rb2 {[%clk 0:01:00.8]} 27. Nd2 {[%clk 0:01:13.5]} 27... Nc8 {[%clk
0:00:38.4]} 28. Nf3 {[%clk 0:01:07]} 28... Bf6 {[%clk 0:00:38.8]} 29. Raa1
{[%clk 0:01:05.2]} 29... Nd6 {[%clk 0:00:35.1]} 30. Rab1 {[%clk 0:01:05.1]}
30... Nc4 {[%clk 0:00:31.8]} 31. Rxb2 {[%clk 0:01:01.8]} 31... Rxb2 {[%clk
0:00:30.7]} 32. Rb1 {[%clk 0:00:58.4]} 32... Ra2 {[%clk 0:00:23.2]} 33. Rc1
{[%clk 0:00:54.5]} 33... Nd6 {[%clk 0:00:20.4]} 34. g3 {[%clk 0:00:52.4]} 34...
Nf5 {[%clk 0:00:19.7]} 35. Bxf5 {[%clk 0:00:51.9]} 35... gxf5 {[%clk 0:00:20.6]}
36. Kg2 {[%clk 0:00:52.4]} 36... g6 {[%clk 0:00:21]} 37. h4 {[%clk 0:00:52.6]}
37... Kg7 {[%clk 0:00:21.2]} 38. Rd1 {[%clk 0:00:49.7]} 38... Rb2 {[%clk
0:00:21]} 39. Rd2 {[%clk 0:00:46.9]} 39... Rb3 {[%clk 0:00:20.8]} 40. Ne1 {[%clk
0:00:34.2]} 40... g5 {[%clk 0:00:19.4]} 41. hxg5 {[%clk 0:00:34]} 41... Bxg5
{[%clk 0:00:20.3]} 42. Nd3 {[%clk 0:00:32.9]} 42... Be7 {[%clk 0:00:18.8]} 43.
Ne5 {[%clk 0:00:31.1]} 43... Bd6 {[%clk 0:00:18.7]} 44. Nf3 {[%clk 0:00:29.1]}
44... f6 {[%clk 0:00:18.4]} 45. Rc2 {[%clk 0:00:28.8]} 45... Kf7 {[%clk
0:00:18.2]} 46. Ra2 {[%clk 0:00:28.1]} 46... Rb7 {[%clk 0:00:17.8]} 47. Ne1
{[%clk 0:00:15.9]} 47... e5 {[%clk 0:00:15.9]} 48. Nf3 {[%clk 0:00:07.4]} 48...
Ke6 {[%clk 0:00:16]} 49. Rc2 {[%clk 0:00:02.5]} 49... Rg7 {[%clk 0:00:15.6]} 0-1

[Event "*** Titled Tuesday Blitz"]
[Site "Chess.com"]
[Date "2021.03.30"]
[Round "6"]
[White "Abund"]
[Black "igorkovalenko"]
[Result "0-1"]
[WhiteElo "2737"]
[BlackElo "2953"]
[TimeControl "180+1"]
[EndTime "11:07:07 PDT"]
[Termination "igorkovalenko won by resignation"]

1. e4 {[%clk 0:03:00.9]} 1... d5 {[%clk 0:03:00.1]} 2. exd5 {[%clk 0:02:58.8]}
2... Qxd5 {[%clk 0:03:01]} 3. Nc3 {[%clk 0:02:58.3]} 3... Qd6 {[%clk 0:03:01.5]}
4. d4 {[%clk 0:02:58]} 4... g6 {[%clk 0:03:01.3]} 5. Nf3 {[%clk 0:02:56.9]} 5...
Bg7 {[%clk 0:03:01.7]} 6. g3 {[%clk 0:02:43.4]} 6... Bg4 {[%clk 0:02:58.2]} 7.
Bg2 {[%clk 0:02:40.7]} 7... Nc6 {[%clk 0:02:58.2]} 8. O-O {[%clk 0:02:31.7]}
8... Nxd4 {[%clk 0:02:57.4]} 9. Ne4 {[%clk 0:02:15.3]} 9... Nxf3+ {[%clk
0:02:56.3]} 10. Qxf3 {[%clk 0:02:14.1]} 10... Bxf3 {[%clk 0:02:56.1]} 11. Nxd6+
{[%clk 0:02:13.4]} 11... cxd6 {[%clk 0:02:51.6]} 12. Bxf3 {[%clk 0:02:13.5]}
12... O-O-O {[%clk 0:02:51.9]} 13. Be3 {[%clk 0:02:08.6]} 13... Kb8 {[%clk
0:02:51.4]} 14. c4 {[%clk 0:02:03.9]} 14... Nf6 {[%clk 0:02:49.2]} 15. Rac1
{[%clk 0:01:54.3]} 15... Rd7 {[%clk 0:02:49.2]} 16. Rfd1 {[%clk 0:01:51.5]}
16... Rc8 {[%clk 0:02:48.5]} 17. b3 {[%clk 0:01:50.8]} 17... h5 {[%clk
0:02:40.3]} 18. h3 {[%clk 0:01:48.9]} 18... Rdc7 {[%clk 0:02:35.6]} 19. Kg2
{[%clk 0:01:37.3]} 19... Nd7 {[%clk 0:02:34.2]} 20. Bd5 {[%clk 0:01:36.2]} 20...
e6 {[%clk 0:02:33.1]} 21. Bf3 {[%clk 0:01:35.2]} 21... Bf8 {[%clk 0:02:32]} 22.
Bf4 {[%clk 0:01:31.4]} 22... Ne5 {[%clk 0:02:29.9]} 23. Be2 {[%clk 0:01:25.6]}
23... Be7 {[%clk 0:02:25.1]} 24. h4 {[%clk 0:01:10.5]} 24... a5 {[%clk 0:02:22]}
25. Be3 {[%clk 0:01:08.3]} 25... Rc6 {[%clk 0:02:13.9]} 26. Bd2 {[%clk
0:00:59.4]} 26... b6 {[%clk 0:02:10.5]} 27. Be3 {[%clk 0:00:59.2]} 27... Ka7
{[%clk 0:02:09.5]} 28. Bd4 {[%clk 0:00:37]} 28... Nd7 {[%clk 0:02:07.5]} 29. Be3
{[%clk 0:00:36.7]} 29... Nc5 {[%clk 0:02:07.6]} 30. Bf3 {[%clk 0:00:36.7]} 30...
R6c7 {[%clk 0:02:07.8]} 31. Bf4 {[%clk 0:00:36.7]} 31... Rd8 {[%clk 0:02:05]}
32. Rd2 {[%clk 0:00:35.2]} 32... f5 {[%clk 0:01:59.5]} 33. Rcd1 {[%clk
0:00:33.6]} 33... e5 {[%clk 0:01:47.6]} 34. Bxe5 {[%clk 0:00:30.1]} 34... dxe5
{[%clk 0:01:48.5]} 35. Rxd8 {[%clk 0:00:30.8]} 35... Bxd8 {[%clk 0:01:49.4]} 36.
Rxd8 {[%clk 0:00:31.4]} 36... e4 {[%clk 0:01:50]} 37. Be2 {[%clk 0:00:31.6]}
37... Rc6 {[%clk 0:01:45.1]} 38. Kf1 {[%clk 0:00:26.8]} 38... Kb7 {[%clk
0:01:43.6]} 39. Ke1 {[%clk 0:00:26.6]} 39... Kc7 {[%clk 0:01:44]} 40. Rd5 {[%clk
0:00:25.8]} 40... Na6 {[%clk 0:01:43.3]} 41. Rd2 {[%clk 0:00:18.1]} 41... Re6
{[%clk 0:01:39.5]} 42. a3 {[%clk 0:00:14.8]} 42... Nc5 {[%clk 0:01:15.1]} 43. b4
{[%clk 0:00:13.1]} 43... axb4 {[%clk 0:01:13.4]} 44. axb4 {[%clk 0:00:14]} 44...
Nd3+ {[%clk 0:01:13.7]} 45. Bxd3 {[%clk 0:00:09.9]} 45... exd3+ {[%clk
0:01:14.6]} 46. Kf1 {[%clk 0:00:07]} 46... Re4 {[%clk 0:01:15.1]} 47. Rxd3
{[%clk 0:00:06.9]} 47... Rxc4 {[%clk 0:01:15.6]} 48. Rb3 {[%clk 0:00:06.4]}
48... b5 {[%clk 0:01:15.3]} 49. Ke2 {[%clk 0:00:05.9]} 49... Kd6 {[%clk
0:01:09]} 50. Rd3+ {[%clk 0:00:04.4]} 50... Ke5 {[%clk 0:01:08.5]} 51. Rb3
{[%clk 0:00:03.2]} 51... f4 {[%clk 0:01:07.8]} 52. Kf3 {[%clk 0:00:02.9]} 52...
Kf5 {[%clk 0:01:07.5]} 53. Rb2 {[%clk 0:00:02.3]} 53... Rc3+ {[%clk 0:01:07.1]}
54. Kg2 {[%clk 0:00:02]} 54... fxg3 {[%clk 0:01:06.9]} 55. fxg3 {[%clk
0:00:02.2]} 55... Kg4 {[%clk 0:01:07.4]} 56. Rd2 {[%clk 0:00:02.5]} 56... Rxg3+
{[%clk 0:01:07.5]} 57. Kf2 {[%clk 0:00:02.9]} 57... Kxh4 {[%clk 0:01:04]} 58.
Rd5 {[%clk 0:00:01.7]} 58... Rg5 {[%clk 0:01:04.2]} 59. Rd4+ {[%clk 0:00:01.5]}
59... Rg4 {[%clk 0:01:04.3]} 60. Rxg4+ {[%clk 0:00:01.6]} 60... Kxg4 {[%clk
0:01:04.3]} 61. Ke3 {[%clk 0:00:02.3]} 61... h4 {[%clk 0:01:04.2]} 62. Kf2
{[%clk 0:00:03]} 62... h3 {[%clk 0:01:04.3]} 63. Kg1 {[%clk 0:00:03.6]} 63...
Kg3 {[%clk 0:01:04.4]} 64. Kh1 {[%clk 0:00:04.5]} 64... g5 {[%clk 0:01:04.9]}
65. Kg1 {[%clk 0:00:05.4]} 65... g4 {[%clk 0:01:05.5]} 66. Kh1 {[%clk
0:00:06.3]} 66... Kf2 {[%clk 0:01:06]} 67. Kh2 {[%clk 0:00:06.4]} 67... g3+
{[%clk 0:01:06.5]} 68. Kxh3 {[%clk 0:00:06.7]} 68... g2 {[%clk 0:01:07]} 69. Kh4
{[%clk 0:00:07.4]} 69... g1=Q {[%clk 0:01:07.1]} 70. Kh5 {[%clk 0:00:07.7]}
70... Qg7 {[%clk 0:01:06.6]} 0-1

[Event "*** Titled Tuesday Blitz"]
[Site "Chess.com"]
[Date "2021.03.30"]
[Round "6"]
[White "mr_gustavo"]
[Black "StockholmMissile"]
[Result "0-1"]
[WhiteElo "2398"]
[BlackElo "2568"]
[TimeControl "180+1"]
[EndTime "11:07:08 PDT"]
[Termination "StockholmMissile won on time"]

1. e4 {[%clk 0:03:00.9]} 1... e5 {[%clk 0:02:58.9]} 2. Nf3 {[%clk 0:03:00.3]}
2... Nc6 {[%clk 0:02:58.9]} 3. Bb5 {[%clk 0:02:56.7]} 3... a6 {[%clk 0:02:55.2]}
4. Ba4 {[%clk 0:02:54.7]} 4... Nf6 {[%clk 0:02:55.1]} 5. O-O {[%clk 0:02:52.5]}
5... Be7 {[%clk 0:02:55]} 6. Re1 {[%clk 0:02:51.9]} 6... b5 {[%clk 0:02:53.5]}
7. Bb3 {[%clk 0:02:52.2]} 7... d6 {[%clk 0:02:53.5]} 8. c3 {[%clk 0:02:48.8]}
8... O-O {[%clk 0:02:53.1]} 9. h3 {[%clk 0:02:48.9]} 9... Nb8 {[%clk 0:02:53]}
10. a4 {[%clk 0:02:40.1]} 10... Bb7 {[%clk 0:02:48.7]} 11. d3 {[%clk 0:02:37]}
11... Nbd7 {[%clk 0:02:45.2]} 12. Nbd2 {[%clk 0:02:36.7]} 12... Nc5 {[%clk
0:02:44.3]} 13. Bc2 {[%clk 0:02:29.2]} 13... bxa4 {[%clk 0:02:43.2]} 14. d4
{[%clk 0:02:24.1]} 14... Nb3 {[%clk 0:02:34.2]} 15. Bxb3 {[%clk 0:02:14.1]}
15... axb3 {[%clk 0:02:35.1]} 16. Qxb3 {[%clk 0:02:14.9]} 16... Rb8 {[%clk
0:02:34.1]} 17. Qc2 {[%clk 0:02:13]} 17... Nd7 {[%clk 0:01:51]} 18. d5 {[%clk
0:02:12.4]} 18... g6 {[%clk 0:01:39.9]} 19. Nb3 {[%clk 0:02:08.2]} 19... f5
{[%clk 0:01:34.8]} 20. c4 {[%clk 0:01:50.9]} 20... f4 {[%clk 0:01:12.7]} 21. Na5
{[%clk 0:01:45.7]} 21... Ba8 {[%clk 0:01:10.6]} 22. Bd2 {[%clk 0:01:37]} 22...
g5 {[%clk 0:01:03.9]} 23. Nh2 {[%clk 0:01:33.5]} 23... Rf7 {[%clk 0:01:02.6]}
24. b4 {[%clk 0:01:31.2]} 24... h5 {[%clk 0:01:02.1]} 25. f3 {[%clk 0:01:30.7]}
25... Rg7 {[%clk 0:00:54.9]} 26. Nc6 {[%clk 0:01:18.3]} 26... Bxc6 {[%clk
0:00:52.7]} 27. dxc6 {[%clk 0:01:19.2]} 27... Nf6 {[%clk 0:00:53.2]} 28. Rxa6
{[%clk 0:01:19.6]} 28... g4 {[%clk 0:00:53.1]} 29. fxg4 {[%clk 0:01:19]} 29...
hxg4 {[%clk 0:00:52.2]} 30. hxg4 {[%clk 0:01:19.2]} 30... Nxg4 {[%clk
0:00:51.5]} 31. Nxg4 {[%clk 0:01:19.6]} 31... Rxg4 {[%clk 0:00:51.7]} 32. Ra3
{[%clk 0:01:17.4]} 32... Bh4 {[%clk 0:00:49.7]} 33. Rea1 {[%clk 0:00:40.5]}
33... Bg3 {[%clk 0:00:46.1]} 34. Qd1 {[%clk 0:00:36.1]} 34... Qh4 {[%clk
0:00:44.8]} 35. Qf3 {[%clk 0:00:36.2]} 35... Kh7 {[%clk 0:00:26.7]} 36. Ra8
{[%clk 0:00:27.2]} 36... Rxa8 {[%clk 0:00:22.7]} 37. Rxa8 {[%clk 0:00:26.8]}
37... Rg7 {[%clk 0:00:22.2]} 38. b5 {[%clk 0:00:20.3]} 38... Qh2+ {[%clk
0:00:11.6]} 39. Kf1 {[%clk 0:00:20.4]} 39... Qh1+ {[%clk 0:00:12.5]} 40. Ke2
{[%clk 0:00:20.6]} 40... Qh2 {[%clk 0:00:06.8]} 41. Kf1 {[%clk 0:00:19.6]} 41...
Qh1+ {[%clk 0:00:06]} 42. Ke2 {[%clk 0:00:20.2]} 42... Qh2 {[%clk 0:00:05.9]}
43. Ra7 {[%clk 0:00:16.5]} 43... Kh6 {[%clk 0:00:05.3]} 44. b6 {[%clk
0:00:16.2]} 44... Bh4 {[%clk 0:00:05.3]} 45. Be1 {[%clk 0:00:05.3]} 45... Rxg2+
{[%clk 0:00:05.4]} 46. Kd1 {[%clk 0:00:05.9]} 46... Bxe1 {[%clk 0:00:04.6]} 47.
bxc7 {[%clk 0:00:03.9]} 47... Rd2+ {[%clk 0:00:04.7]} 48. Kxe1 {[%clk
0:00:04.5]} 48... Rc2 {[%clk 0:00:03.2]} 49. c8=Q {[%clk 0:00:02.6]} 49... Qd2+
{[%clk 0:00:03.1]} 50. Kf1 {[%clk 0:00:03]} 50... Rc1+ {[%clk 0:00:04]} 0-1

[Event "*** Titled Tuesday Blitz"]
[Site "Chess.com"]
[Date "2021.03.30"]
[Round "6"]
[White "Khnykin_Nikolay"]
[Black "Ze-Pequeno"]
[Result "0-1"]
[WhiteElo "2024"]
[BlackElo "2201"]
[TimeControl "180+1"]
[EndTime "11:07:09 PDT"]
[Termination "Ze-Pequeno won by checkmate"]

1. e4 {[%clk 0:02:54.7]} 1... e5 {[%clk 0:02:59.8]} 2. Nf3 {[%clk 0:02:53.8]}
2... Nc6 {[%clk 0:02:59.4]} 3. Bc4 {[%clk 0:02:52.3]} 3... Nf6 {[%clk
0:02:59.2]} 4. O-O {[%clk 0:02:51.6]} 4... Bc5 {[%clk 0:02:57.7]} 5. b4 {[%clk
0:02:51.1]} 5... Bxb4 {[%clk 0:02:56.8]} 6. c3 {[%clk 0:02:50.9]} 6... Be7
{[%clk 0:02:54]} 7. d4 {[%clk 0:02:50.5]} 7... d6 {[%clk 0:02:54.1]} 8. dxe5
{[%clk 0:02:32.4]} 8... Nxe5 {[%clk 0:02:48]} 9. Nxe5 {[%clk 0:02:29]} 9... dxe5
{[%clk 0:02:48.9]} 10. Qxd8+ {[%clk 0:02:27.8]} 10... Bxd8 {[%clk 0:02:48.4]}
11. Bg5 {[%clk 0:02:23.6]} 11... h6 {[%clk 0:02:21.7]} 12. Bxf6 {[%clk
0:02:20.7]} 12... Bxf6 {[%clk 0:02:22.6]} 13. Na3 {[%clk 0:02:19.2]} 13... c6
{[%clk 0:02:21]} 14. f4 {[%clk 0:02:12.2]} 14... O-O {[%clk 0:02:06.3]} 15. fxe5
{[%clk 0:02:10.6]} 15... Bxe5 {[%clk 0:02:01.6]} 16. Rad1 {[%clk 0:02:09.2]}
16... Bg4 {[%clk 0:01:56]} 17. Rc1 {[%clk 0:01:52]} 17... Rad8 {[%clk
0:01:52.2]} 18. h3 {[%clk 0:01:50.6]} 18... Be6 {[%clk 0:01:34.6]} 19. Bxe6
{[%clk 0:01:47.8]} 19... fxe6 {[%clk 0:01:34.1]} 20. Rxf8+ {[%clk 0:01:48.7]}
20... Kxf8 {[%clk 0:01:33.7]} 21. Nc4 {[%clk 0:01:45.6]} 21... Bc7 {[%clk
0:01:32.7]} 22. e5 {[%clk 0:01:42.7]} 22... Ke7 {[%clk 0:01:31.2]} 23. Rb1
{[%clk 0:01:41.4]} 23... b5 {[%clk 0:01:27.1]} 24. Ne3 {[%clk 0:01:34.5]} 24...
Bxe5 {[%clk 0:01:23.8]} 25. c4 {[%clk 0:01:33.8]} 25... Bd4 {[%clk 0:01:22.7]}
26. Kf2 {[%clk 0:01:31.8]} 26... a6 {[%clk 0:00:57.9]} 27. cxb5 {[%clk
0:01:30.6]} 27... cxb5 {[%clk 0:00:58]} 28. Rc1 {[%clk 0:01:29.6]} 28... Bb6
{[%clk 0:00:47]} 29. Rc6 {[%clk 0:01:27.4]} 29... Rd6 {[%clk 0:00:45.3]} 30. Rc8
{[%clk 0:01:24.1]} 30... Rd3 {[%clk 0:00:42.1]} 31. Ke2 {[%clk 0:01:19.4]} 31...
Rxe3+ {[%clk 0:00:41.4]} 32. Kd2 {[%clk 0:01:18.3]} 32... Ra3 {[%clk 0:00:40.5]}
33. Rc2 {[%clk 0:01:16.7]} 33... e5 {[%clk 0:00:37.1]} 34. Ke2 {[%clk 0:01:17]}
34... e4 {[%clk 0:00:36.8]} 35. Rd2 {[%clk 0:01:16]} 35... e3 {[%clk 0:00:34.7]}
36. Rc2 {[%clk 0:01:14.6]} 36... Kd6 {[%clk 0:00:33.4]} 37. g4 {[%clk
0:01:14.2]} 37... g5 {[%clk 0:00:32.7]} 38. Kf3 {[%clk 0:01:13.3]} 38... Kd5
{[%clk 0:00:32.2]} 39. Rc1 {[%clk 0:01:10.2]} 39... Rxa2 {[%clk 0:00:31.9]} 40.
Rd1+ {[%clk 0:01:09]} 40... Ke5 {[%clk 0:00:32]} 41. Rd7 {[%clk 0:01:06.4]}
41... Rf2+ {[%clk 0:00:31.7]} 42. Kg3 {[%clk 0:01:06]} 42... Rf6 {[%clk
0:00:32.6]} 43. Re7+ {[%clk 0:01:05.3]} 43... Re6 {[%clk 0:00:32.6]} 44. Rb7
{[%clk 0:01:04.3]} 44... e2 {[%clk 0:00:31.4]} 45. Rxb6 {[%clk 0:01:02]} 45...
Rxb6 {[%clk 0:00:31.3]} 46. Kf2 {[%clk 0:01:01.8]} 46... b4 {[%clk 0:00:31.6]}
47. Kxe2 {[%clk 0:01:02]} 47... b3 {[%clk 0:00:32.5]} 48. Kd2 {[%clk 0:01:02.1]}
48... b2 {[%clk 0:00:33.4]} 49. Kc2 {[%clk 0:01:03]} 49... b1=Q+ {[%clk
0:00:34.3]} 50. Kc3 {[%clk 0:01:02.3]} 50... Rb3+ {[%clk 0:00:33.9]} 51. Kd2
{[%clk 0:01:01.6]} 51... Qd3+ {[%clk 0:00:33.5]} 52. Kc1 {[%clk 0:01:01.4]}
52... Qxh3 {[%clk 0:00:32.6]} 53. Kc2 {[%clk 0:01:00.8]} 53... a5 {[%clk
0:00:31.3]} 54. Kc1 {[%clk 0:01:01.7]} 54... Qxg4 {[%clk 0:00:30.9]} 55. Kc2
{[%clk 0:01:02.6]} 55... Qc4+ {[%clk 0:00:29.6]} 56. Kd2 {[%clk 0:01:01.7]}
56... Qc3+ {[%clk 0:00:28.1]} 57. Ke2 {[%clk 0:01:01.3]} 57... Qc2+ {[%clk
0:00:26.9]} 58. Ke1 {[%clk 0:00:58.9]} 58... a4 {[%clk 0:00:27.8]} 59. Kf1
{[%clk 0:00:58.4]} 59... a3 {[%clk 0:00:28.7]} 60. Ke1 {[%clk 0:00:58.6]} 60...
a2 {[%clk 0:00:29.6]} 61. Kf1 {[%clk 0:00:59.2]} 61... g4 {[%clk 0:00:30.5]} 62.
Ke1 {[%clk 0:00:59.6]} 62... h5 {[%clk 0:00:31.4]} 63. Kf1 {[%clk 0:01:00.1]}
63... h4 {[%clk 0:00:32.3]} 64. Ke1 {[%clk 0:01:00.7]} 64... g3 {[%clk
0:00:33.2]} 65. Kf1 {[%clk 0:01:01.2]} 65... h3 {[%clk 0:00:34.1]} 66. Ke1
{[%clk 0:01:01.7]} 66... Kd4 {[%clk 0:00:34.8]} 67. Kf1 {[%clk 0:01:01.7]} 67...
Kc3 {[%clk 0:00:35.7]} 68. Kg1 {[%clk 0:01:02.1]} 68... Kb2 {[%clk 0:00:36.6]}
69. Kf1 {[%clk 0:01:02.6]} 69... Kc1 {[%clk 0:00:37.4]} 70. Kg1 {[%clk 0:01:03]}
70... a1=B {[%clk 0:00:36.3]} 71. Kf1 {[%clk 0:01:03.5]} 71... Bg7 {[%clk
0:00:35.8]} 72. Kg1 {[%clk 0:01:03]} 72... Bf8 {[%clk 0:00:35.6]} 73. Kf1 {[%clk
0:01:02.8]} 73... Rb2 {[%clk 0:00:34.5]} 74. Kg1 {[%clk 0:00:57.3]} 74... Kd1
{[%clk 0:00:30.2]} 75. Kh1 {[%clk 0:00:56.4]} 75... Rb1 {[%clk 0:00:28.5]} 76.
Kg1 {[%clk 0:00:55.9]} 76... Bc5+ {[%clk 0:00:27.6]} 77. Kf1 {[%clk 0:00:55.9]}
77... Bg1 {[%clk 0:00:27.7]} 78. Kxg1 {[%clk 0:00:55.2]} 78... Qc5+ {[%clk
0:00:27.7]} 79. Kf1 {[%clk 0:00:53.8]} 79... Qg1+ {[%clk 0:00:28.6]} 80. Kxg1
{[%clk 0:00:53.6]} 80... Ke2# {[%clk 0:00:29.5]} 0-1

[Event "*** Titled Tuesday Blitz"]
[Site "Chess.com"]
[Date "2021.03.30"]
[Round "6"]
[White "wadsy27"]
[Black "jaskol95"]
[Result "1-0"]
[WhiteElo "2571"]
[BlackElo "2415"]
[TimeControl "180+1"]
[EndTime "11:07:13 PDT"]
[Termination "wadsy27 won by checkmate"]

1. c4 {[%clk 0:03:00.9]} 1... e5 {[%clk 0:02:59.5]} 2. g3 {[%clk 0:03:01.1]}
2... Nc6 {[%clk 0:02:59.9]} 3. Bg2 {[%clk 0:03:01.9]} 3... f5 {[%clk 0:03:00.5]}
4. Nc3 {[%clk 0:03:01.8]} 4... Nf6 {[%clk 0:02:59.6]} 5. d3 {[%clk 0:03:01.9]}
5... Bb4 {[%clk 0:02:59.4]} 6. Bd2 {[%clk 0:03:00]} 6... Bxc3 {[%clk 0:02:59]}
7. Bxc3 {[%clk 0:02:59.4]} 7... d6 {[%clk 0:02:59.9]} 8. b4 {[%clk 0:02:58.9]}
8... O-O {[%clk 0:02:58.3]} 9. b5 {[%clk 0:02:59.1]} 9... Ne7 {[%clk 0:02:57.7]}
10. e3 {[%clk 0:02:58.2]} 10... Kh8 {[%clk 0:02:51.7]} 11. Ne2 {[%clk
0:02:58.2]} 11... c6 {[%clk 0:02:51.5]} 12. bxc6 {[%clk 0:02:56.3]} 12... bxc6
{[%clk 0:02:52.4]} 13. O-O {[%clk 0:02:55.3]} 13... Qe8 {[%clk 0:02:50.6]} 14.
f4 {[%clk 0:02:47.5]} 14... Ng4 {[%clk 0:02:42.3]} 15. Qd2 {[%clk 0:02:47.3]}
15... e4 {[%clk 0:01:59.9]} 16. dxe4 {[%clk 0:02:42.4]} 16... fxe4 {[%clk
0:02:00.4]} 17. h3 {[%clk 0:02:42]} 17... Nf6 {[%clk 0:01:59.6]} 18. Qxd6 {[%clk
0:02:32.5]} 18... Nf5 {[%clk 0:01:09.3]} 19. Qc5 {[%clk 0:02:31.6]} 19... Be6
{[%clk 0:00:57]} 20. Nd4 {[%clk 0:02:23]} 20... Nxg3 {[%clk 0:00:47.4]} 21. Nxe6
{[%clk 0:02:17.2]} 21... Qxe6 {[%clk 0:00:48.3]} 22. Rf2 {[%clk 0:02:15.3]}
22... Rfd8 {[%clk 0:00:43.1]} 23. f5 {[%clk 0:02:10]} 23... Qf7 {[%clk
0:00:41.1]} 24. Qe5 {[%clk 0:01:57.6]} 24... Nfh5 {[%clk 0:00:38.2]} 25. f6
{[%clk 0:01:18.9]} 25... gxf6 {[%clk 0:00:38.4]} 26. Rxf6 {[%clk 0:01:17.9]}
26... Qxf6 {[%clk 0:00:31]} 27. Qxf6+ {[%clk 0:01:13.5]} 27... Nxf6 {[%clk
0:00:31.9]} 28. Bxf6+ {[%clk 0:01:13.3]} 28... Kg8 {[%clk 0:00:32.6]} 29. Bxd8
{[%clk 0:01:12.9]} 29... Rxd8 {[%clk 0:00:33.1]} 30. Kh2 {[%clk 0:01:08.9]}
30... Nf5 {[%clk 0:00:32.3]} 31. Bxe4 {[%clk 0:01:08.8]} 31... Nxe3 {[%clk
0:00:32.7]} 32. Bxc6 {[%clk 0:01:00.4]} 32... Nxc4 {[%clk 0:00:30.7]} 33. Rg1+
{[%clk 0:00:57.7]} 33... Kf7 {[%clk 0:00:29.7]} 34. Rg2 {[%clk 0:00:53.9]} 34...
Ne5 {[%clk 0:00:25.3]} 35. Be4 {[%clk 0:00:51.4]} 35... h6 {[%clk 0:00:24.1]}
36. Rf2+ {[%clk 0:00:48.5]} 36... Ke6 {[%clk 0:00:23.5]} 37. Kg3 {[%clk
0:00:46.9]} 37... Rg8+ {[%clk 0:00:21.9]} 38. Kh4 {[%clk 0:00:45.3]} 38... Rg5
{[%clk 0:00:20.8]} 39. Rb2 {[%clk 0:00:39.1]} 39... Nd7 {[%clk 0:00:13.5]} 40.
Rb3 {[%clk 0:00:31.5]} 40... Nc5 {[%clk 0:00:12.4]} 41. Rb4 {[%clk 0:00:28.2]}
41... Ke5 {[%clk 0:00:11.1]} 42. Bf3 {[%clk 0:00:25.2]} 42... Nd3 {[%clk
0:00:08.4]} 43. Ra4 {[%clk 0:00:21]} 43... Kf5 {[%clk 0:00:06]} 44. Be4+ {[%clk
0:00:20.7]} 44... Ke5 {[%clk 0:00:04.7]} 45. Bxd3 {[%clk 0:00:20.9]} 45... Rg7
{[%clk 0:00:03.5]} 46. Ra5+ {[%clk 0:00:20.7]} 46... Kd4 {[%clk 0:00:04]} 47.
Bf5 {[%clk 0:00:20.3]} 47... Kc4 {[%clk 0:00:03.9]} 48. Bg4 {[%clk 0:00:20.6]}
48... Kb4 {[%clk 0:00:04.3]} 49. Ra6 {[%clk 0:00:21.2]} 49... Rc7 {[%clk
0:00:02.9]} 50. Rxh6 {[%clk 0:00:21.6]} 50... a5 {[%clk 0:00:02.4]} 51. Kg5
{[%clk 0:00:21]} 51... a4 {[%clk 0:00:02.9]} 52. Ra6 {[%clk 0:00:21]} 52... Ka3
{[%clk 0:00:03.4]} 53. h4 {[%clk 0:00:21]} 53... Rc5+ {[%clk 0:00:04]} 54. Bf5
{[%clk 0:00:21]} 54... Rc4 {[%clk 0:00:04.5]} 55. h5 {[%clk 0:00:21]} 55... Kxa2
{[%clk 0:00:02.8]} 56. Be6 {[%clk 0:00:21.3]} 56... Ka3 {[%clk 0:00:02.8]} 57.
Bxc4 {[%clk 0:00:20.9]} 57... Kb4 {[%clk 0:00:03.7]} 58. h6 {[%clk 0:00:20.7]}
58... Ka3 {[%clk 0:00:04.2]} 59. Rxa4+ {[%clk 0:00:21.2]} 59... Kb2 {[%clk
0:00:04.9]} 60. h7 {[%clk 0:00:21.7]} 60... Kb1 {[%clk 0:00:04.9]} 61. h8=Q
{[%clk 0:00:21.9]} 61... Kc2 {[%clk 0:00:05.2]} 62. Ra2+ {[%clk 0:00:21.4]}
62... Kb1 {[%clk 0:00:05.5]} 63. Qa1# {[%clk 0:00:21.4]} 1-0